[Event "December 19 Late 2023"]
[Site "https://www.chess.com"]
[Date "2023.12.19"]
[Round "4"]
[White "Vlassov, Nikolai"]
[Black "Laskakis, Konstantinos"]
[Result "1-0"]
[Board "104"]
[TimeControl "180+1"]
[WhiteFideId "4103360"]
[BlackFideId "42134374"]
[WhiteElo "2351"]
[BlackElo "2389"]
[WhiteTeam "FID"]
[BlackTeam "GRE"]
[WhiteClock "0:00:23"]
[BlackClock "0:00:00"]

1. e4 {[%clk 0:03:00]}  e5 {[%clk 0:02:59]} 2. Bc4 {[%clk 0:03:00]}  Nf6 {[%clk 0:02:59]} 3. d3 {[%clk 0:02:58]}  Bc5 {[%clk 0:02:57]} 4. Nf3 {[%clk 0:02:58]}  d6 {[%clk 0:02:55]} 5. Bg5 {[%clk 0:02:57]}  h6 {[%clk 0:02:53]} 6. Bh4 {[%clk 0:02:58]}  c6 {[%clk 0:02:53]} 7. Nc3 {[%clk 0:02:54]}  b5 {[%clk 0:02:46]} 8. Bb3 {[%clk 0:02:53]}  a5 {[%clk 0:02:47]} 9. a4 {[%clk 0:02:53]}  b4 {[%clk 0:02:47]} 10. Ne2 {[%clk 0:02:54]}  O-O {[%clk 0:02:38]} 11. h3 {[%clk 0:02:53]}  Be6 {[%clk 0:02:37]} 12. O-O {[%clk 0:02:49]}  Bxb3 {[%clk 0:02:34]} 13. cxb3 {[%clk 0:02:49]}  Nbd7 {[%clk 0:02:31]} 14. d4 {[%clk 0:02:48]}  exd4 {[%clk 0:02:24]} 15. Nfxd4 {[%clk 0:02:45]}  Qb6 {[%clk 0:02:08]} 16. Nf5 {[%clk 0:02:38]}  Nxe4 {[%clk 0:02:03]} 17. Qd3 {[%clk 0:02:27]}  d5 {[%clk 0:01:54]} 18. Rac1 {[%clk 0:02:16]}  Ne5 {[%clk 0:01:48]} 19. Qc2 {[%clk 0:02:16]}  Ng6 {[%clk 0:01:35]} 20. Kh1 {[%clk 0:02:05]}  Nxh4 {[%clk 0:01:29]} 21. Nxh4 {[%clk 0:02:04]}  Nxf2+ {[%clk 0:01:27]} 22. Rxf2 {[%clk 0:01:58]}  Bxf2 {[%clk 0:01:25]} 23. Nf5 {[%clk 0:01:58]}  Be3 {[%clk 0:01:08]} 24. Rf1 {[%clk 0:01:57]}  Bg5 {[%clk 0:00:52]} 25. h4 {[%clk 0:01:51]}  Bd8 {[%clk 0:00:48]} 26. Neg3 {[%clk 0:01:51]}  c5 {[%clk 0:00:44]} 27. Nh5 {[%clk 0:01:50]}  Qg6 {[%clk 0:00:19]} 28. Nhxg7 {[%clk 0:01:48]}  Ra6 {[%clk 0:00:17]} 29. Qxc5 {[%clk 0:01:46]}  Rf6 {[%clk 0:00:16]} 30. Qxd5 {[%clk 0:01:43]}  Bc7 {[%clk 0:00:14]} 31. Rc1 {[%clk 0:01:36]}  Bf4 {[%clk 0:00:12]} 32. Rc4 {[%clk 0:01:35]}  Qg4 {[%clk 0:00:09]} 33. Qf3 {[%clk 0:01:17]}  Qxf3 {[%clk 0:00:08]} 34. gxf3 {[%clk 0:01:18]}  Be5 {[%clk 0:00:08]} 35. Rg4 {[%clk 0:01:16]}  Rg6 {[%clk 0:00:07]} 36. Nh5 {[%clk 0:01:11]}  Rxg4 {[%clk 0:00:07]} 37. fxg4 {[%clk 0:01:12]}  Bxb2 {[%clk 0:00:07]} 38. Nxh6+ {[%clk 0:01:12]}  Kh7 {[%clk 0:00:07]} 39. g5 {[%clk 0:01:10]}  Rc8 {[%clk 0:00:06]} 40. Ng4 {[%clk 0:01:07]}  Rc3 {[%clk 0:00:06]} 41. Ngf6+ {[%clk 0:01:02]}  Kg6 {[%clk 0:00:06]} 42. Nf4+ {[%clk 0:01:02]}  Kf5 {[%clk 0:00:04]} 43. N4d5 {[%clk 0:01:00]}  Rh3+ {[%clk 0:00:03]} 44. Kg2 {[%clk 0:01:00]}  Rxh4 {[%clk 0:00:03]} 45. Nd7 {[%clk 0:00:57]}  Kxg5 {[%clk 0:00:03]} 46. Nc5 {[%clk 0:00:46]}  Rd4 {[%clk 0:00:03]} 47. Nc7 {[%clk 0:00:45]}  Rd2+ {[%clk 0:00:02]} 48. Kf3 {[%clk 0:00:45]}  Be5 {[%clk 0:00:02]} 49. Nb5 {[%clk 0:00:38]}  Rb2 {[%clk 0:00:01]} 50. Ke4 {[%clk 0:00:34]}  f6 {[%clk 0:00:01]} 51. Na7 {[%clk 0:00:29]}  Re2+ {[%clk 0:00:01]} 52. Kd3 {[%clk 0:00:24]}  Rh2 {[%clk 0:00:01]} 53. Nc6 {[%clk 0:00:24]}  Bf4 {[%clk 0:00:00]} 54. Nxa5 {[%clk 0:00:23]} 1-0

[Event "December 19 Late 2023"]
[Site "https://www.chess.com"]
[Date "2023.12.19"]
[Round "4"]
[White "Becerra, Juan David"]
[Black "Omelja, Artem"]
[Result "0-1"]
[Board "106"]
[TimeControl "180+1"]
[WhiteFideId "4404998"]
[BlackFideId "14119846"]
[WhiteElo "2293"]
[BlackElo "2404"]
[WhiteTeam "COL"]
[BlackTeam "UKR"]
[WhiteClock "0:00:17"]
[BlackClock "0:02:12"]

1. d4 {[%clk 0:02:59]}  Nf6 {[%clk 0:02:58]} 2. Nc3 {[%clk 0:02:59]}  d5 {[%clk 0:02:58]} 3. Bf4 {[%clk 0:02:59]}  c5 {[%clk 0:02:58]} 4. e3 {[%clk 0:02:59]}  cxd4 {[%clk 0:02:57]} 5. exd4 {[%clk 0:02:59]}  Bg4 {[%clk 0:02:57]} 6. Be2 {[%clk 0:02:54]}  Bxe2 {[%clk 0:02:57]} 7. Ncxe2 {[%clk 0:02:50]}  Nc6 {[%clk 0:02:58]} 8. Nf3 {[%clk 0:02:50]}  Qb6 {[%clk 0:02:57]} 9. Rb1 {[%clk 0:02:45]}  Qa5+ {[%clk 0:02:57]} 10. Nc3 {[%clk 0:02:33]}  e6 {[%clk 0:02:57]} 11. O-O {[%clk 0:02:33]}  Bb4 {[%clk 0:02:56]} 12. Qd3 {[%clk 0:02:12]}  Bxc3 {[%clk 0:02:53]} 13. bxc3 {[%clk 0:02:12]}  b6 {[%clk 0:02:53]} 14. Bd6 {[%clk 0:02:08]}  O-O-O {[%clk 0:02:53]} 15. Bb4 {[%clk 0:01:53]}  Qxa2 {[%clk 0:02:52]} 16. Ne5 {[%clk 0:01:47]}  Nxe5 {[%clk 0:02:51]} 17. dxe5 {[%clk 0:01:47]}  Ne4 {[%clk 0:02:52]} 18. Ra1 {[%clk 0:01:44]}  Qc4 {[%clk 0:02:52]} 19. Rxa7 {[%clk 0:01:41]}  f6 {[%clk 0:02:45]} 20. f3 {[%clk 0:01:14]}  Nc5 {[%clk 0:02:34]} 21. Qe3 {[%clk 0:00:54]}  d4 {[%clk 0:02:30]} 22. cxd4 {[%clk 0:00:47]}  Rxd4 {[%clk 0:02:29]} 23. Bxc5 {[%clk 0:00:34]}  Qxc5 {[%clk 0:02:29]} 24. Ra8+ {[%clk 0:00:34]}  Kb7 {[%clk 0:02:29]} 25. Rxh8 {[%clk 0:00:32]}  Qc4 {[%clk 0:02:21]} 26. Ra1 {[%clk 0:00:30]}  f5 {[%clk 0:02:20]} 27. c3 {[%clk 0:00:26]}  Rd3 {[%clk 0:02:17]} 28. Qf2 {[%clk 0:00:24]}  Rxc3 {[%clk 0:02:14]} 29. Rha8 {[%clk 0:00:22]}  Rc1+ {[%clk 0:02:09]} 30. Rxc1 {[%clk 0:00:17]}  Qxc1+ {[%clk 0:02:10]} 31. Qf1 {[%clk 0:00:17]}  Qxf1+ {[%clk 0:02:11]} 32. Kxf1 {[%clk 0:00:18]}  Kxa8 {[%clk 0:02:11]} 33. Ke2 {[%clk 0:00:17]}  Kb7 {[%clk 0:02:12]} 0-1

[Event "December 19 Late 2023"]
[Site "https://www.chess.com"]
[Date "2023.12.19"]
[Round "4"]
[White "Ezat, Mohamed"]
[Black "Semenenko, Dmytry"]
[Result "1-0"]
[Board "107"]
[TimeControl "180+1"]
[WhiteFideId "10600906"]
[BlackFideId "14118645"]
[WhiteElo "2367"]
[BlackElo "2113"]
[WhiteTeam "EGY"]
[BlackTeam "UKR"]
[WhiteClock "0:01:42"]
[BlackClock "0:01:32"]

1. e4 {[%clk 0:02:47]}  Nf6 {[%clk 0:02:59]} 2. e5 {[%clk 0:02:47]}  Nd5 {[%clk 0:03:00]} 3. Qf3 {[%clk 0:02:48]}  e6 {[%clk 0:02:59]} 4. Qg3 {[%clk 0:02:48]}  d6 {[%clk 0:02:57]} 5. d4 {[%clk 0:02:49]}  dxe5 {[%clk 0:02:48]} 6. dxe5 {[%clk 0:02:39]}  Nb4 {[%clk 0:02:48]} 7. Na3 {[%clk 0:02:38]}  N8c6 {[%clk 0:02:47]} 8. Nf3 {[%clk 0:02:38]}  Nd4 {[%clk 0:02:43]} 9. Nxd4 {[%clk 0:02:32]}  Qxd4 {[%clk 0:02:43]} 10. c3 {[%clk 0:02:28]}  Qe4+ {[%clk 0:02:43]} 11. Be2 {[%clk 0:02:26]}  Nc6 {[%clk 0:02:37]} 12. Nb5 {[%clk 0:02:21]}  Nxe5 {[%clk 0:02:10]} 13. Nxc7+ {[%clk 0:02:20]}  Kd8 {[%clk 0:02:11]} 14. Nxa8 {[%clk 0:02:17]}  Bd6 {[%clk 0:02:11]} 15. Bg5+ {[%clk 0:02:07]}  f6 {[%clk 0:02:10]} 16. Rd1 {[%clk 0:02:05]}  Ke7 {[%clk 0:02:08]} 17. Bf4 {[%clk 0:02:00]}  Bd7 {[%clk 0:01:56]} 18. Qxg7+ {[%clk 0:01:59]}  Nf7 {[%clk 0:01:52]} 19. Bxd6+ {[%clk 0:01:58]}  Kd8 {[%clk 0:01:52]} 20. Qxf6+ {[%clk 0:01:48]}  Kc8 {[%clk 0:01:51]} 21. Qxf7 {[%clk 0:01:48]}  Qxg2 {[%clk 0:01:43]} 22. Bf3 {[%clk 0:01:47]}  Qg5 {[%clk 0:01:37]} 23. Qxd7+ {[%clk 0:01:42]}  Kxd7 {[%clk 0:01:37]} 24. Bf4+ {[%clk 0:01:42]}  Ke8 {[%clk 0:01:32]} 25. Bxg5 {[%clk 0:01:42]} 1-0

[Event "December 19 Late 2023"]
[Site "https://www.chess.com"]
[Date "2023.12.19"]
[Round "4"]
[White "Pace, Christopher"]
[Black "Cattaneo, Marco"]
[Result "1-0"]
[Board "113"]
[TimeControl "180+1"]
[WhiteFideId "2610167"]
[BlackFideId "878332"]
[WhiteElo "2348"]
[BlackElo "2186"]
[WhiteTeam "CAN"]
[BlackTeam "ITA"]
[WhiteClock "0:00:22"]
[BlackClock "0:00:12"]

1. e4 {[%clk 0:03:00]}  g6 {[%clk 0:03:00]} 2. d4 {[%clk 0:03:00]}  Bg7 {[%clk 0:03:00]} 3. Nc3 {[%clk 0:03:00]}  c6 {[%clk 0:03:01]} 4. Be3 {[%clk 0:02:57]}  d5 {[%clk 0:03:01]} 5. e5 {[%clk 0:02:57]}  f6 {[%clk 0:03:00]} 6. f4 {[%clk 0:02:57]}  Nh6 {[%clk 0:02:57]} 7. Nf3 {[%clk 0:02:57]}  O-O {[%clk 0:02:52]} 8. Be2 {[%clk 0:02:51]}  a5 {[%clk 0:02:52]} 9. a4 {[%clk 0:02:42]}  Na6 {[%clk 0:02:52]} 10. O-O {[%clk 0:02:42]}  Nc7 {[%clk 0:02:51]} 11. Kh1 {[%clk 0:02:34]}  Bg4 {[%clk 0:02:41]} 12. h3 {[%clk 0:02:33]}  Bxf3 {[%clk 0:02:39]} 13. Bxf3 {[%clk 0:02:34]}  Ne6 {[%clk 0:02:29]} 14. g4 {[%clk 0:02:30]}  f5 {[%clk 0:02:28]} 15. g5 {[%clk 0:02:21]}  Nf7 {[%clk 0:02:28]} 16. h4 {[%clk 0:02:18]}  Qb6 {[%clk 0:02:23]} 17. Ra3 {[%clk 0:02:12]}  Nc7 {[%clk 0:01:55]} 18. h5 {[%clk 0:02:04]}  Nd8 {[%clk 0:01:55]} 19. Kg2 {[%clk 0:01:59]}  Re8 {[%clk 0:01:52]} 20. Rh1 {[%clk 0:01:56]}  Nde6 {[%clk 0:01:48]} 21. hxg6 {[%clk 0:01:55]}  hxg6 {[%clk 0:01:48]} 22. Rb3 {[%clk 0:01:50]}  Qa7 {[%clk 0:01:47]} 23. Ne2 {[%clk 0:01:29]}  Kf7 {[%clk 0:01:46]} 24. Ng3 {[%clk 0:01:29]}  Rh8 {[%clk 0:01:42]} 25. Bh5 {[%clk 0:00:55]}  b5 {[%clk 0:01:07]} 26. Nxf5 {[%clk 0:00:52]}  gxh5 {[%clk 0:01:06]} 27. Rxh5 {[%clk 0:00:47]}  bxa4 {[%clk 0:00:54]} 28. Rc3 {[%clk 0:00:47]}  Qb7 {[%clk 0:00:48]} 29. Bc1 {[%clk 0:00:28]}  c5 {[%clk 0:00:45]} 30. g6+ {[%clk 0:00:23]}  Kf8 {[%clk 0:00:22]} 31. Rxh8+ {[%clk 0:00:22]}  Bxh8 {[%clk 0:00:22]} 32. Qh5 {[%clk 0:00:23]}  Ke8 {[%clk 0:00:14]} 33. Qxh8+ {[%clk 0:00:21]}  Kd7 {[%clk 0:00:15]} 34. Qh7 {[%clk 0:00:22]}  cxd4 {[%clk 0:00:16]} 35. Qxe7+ {[%clk 0:00:22]}  Kc8 {[%clk 0:00:15]} 36. Nd6+ {[%clk 0:00:22]}  Kb8 {[%clk 0:00:15]} 37. Nxb7 {[%clk 0:00:23]}  dxc3 {[%clk 0:00:15]} 38. bxc3 {[%clk 0:00:22]}  Kxb7 {[%clk 0:00:15]} 39. f5 {[%clk 0:00:23]}  Nf4+ {[%clk 0:00:15]} 40. Bxf4 {[%clk 0:00:23]}  a3 {[%clk 0:00:12]} 41. Qxa3 {[%clk 0:00:22]} 1-0

[Event "December 19 Late 2023"]
[Site "https://www.chess.com"]
[Date "2023.12.19"]
[Round "4"]
[White "Hnydiuk, Aleksander"]
[Black "Biernacki, Mark"]
[Result "1-0"]
[Board "114"]
[TimeControl "180+1"]
[WhiteFideId "1109057"]
[BlackFideId "2082322"]
[WhiteElo "2374"]
[BlackElo "1965"]
[WhiteTeam "POL"]
[BlackTeam "USA"]
[WhiteClock "0:00:06"]
[BlackClock "0:00:00"]

1. e4 {[%clk 0:03:00]}  c6 {[%clk 0:02:59]} 2. d4 {[%clk 0:02:54]}  d5 {[%clk 0:03:00]} 3. e5 {[%clk 0:02:54]}  Bf5 {[%clk 0:03:01]} 4. h4 {[%clk 0:02:54]}  h5 {[%clk 0:03:00]} 5. Bg5 {[%clk 0:02:51]}  Qa5+ {[%clk 0:02:58]} 6. Nc3 {[%clk 0:02:48]}  e6 {[%clk 0:02:55]} 7. Bd3 {[%clk 0:02:47]}  Bxd3 {[%clk 0:02:51]} 8. Qxd3 {[%clk 0:02:48]}  Bb4 {[%clk 0:02:44]} 9. Ne2 {[%clk 0:02:48]}  Ne7 {[%clk 0:02:43]} 10. O-O {[%clk 0:02:30]}  Nf5 {[%clk 0:02:38]} 11. Nd1 {[%clk 0:02:21]}  Nd7 {[%clk 0:02:34]} 12. Ng3 {[%clk 0:02:21]}  g6 {[%clk 0:02:05]} 13. c3 {[%clk 0:02:10]}  Be7 {[%clk 0:02:04]} 14. Bxe7 {[%clk 0:02:09]}  Kxe7 {[%clk 0:01:57]} 15. Qd2 {[%clk 0:01:59]}  Rag8 {[%clk 0:01:38]} 16. Qg5+ {[%clk 0:01:58]}  Ke8 {[%clk 0:01:39]} 17. Ne3 {[%clk 0:01:42]}  Qd8 {[%clk 0:01:37]} 18. Nexf5 {[%clk 0:01:34]}  gxf5 {[%clk 0:01:27]} 19. Qxd8+ {[%clk 0:01:33]}  Kxd8 {[%clk 0:01:28]} 20. Ne2 {[%clk 0:01:29]}  Rg4 {[%clk 0:01:02]} 21. g3 {[%clk 0:01:28]}  Rhg8 {[%clk 0:01:00]} 22. Kh2 {[%clk 0:01:27]}  f6 {[%clk 0:00:57]} 23. Nf4 {[%clk 0:01:19]}  fxe5 {[%clk 0:00:48]} 24. dxe5 {[%clk 0:01:10]}  Ke7 {[%clk 0:00:38]} 25. Rfe1 {[%clk 0:01:08]}  Rh8 {[%clk 0:00:34]} 26. Rad1 {[%clk 0:01:03]}  Rgg8 {[%clk 0:00:30]} 27. Rd4 {[%clk 0:01:02]}  Nc5 {[%clk 0:00:24]} 28. Kg2 {[%clk 0:00:48]}  Rg4 {[%clk 0:00:20]} 29. Kf3 {[%clk 0:00:47]}  Ne4 {[%clk 0:00:20]} 30. Rb4 {[%clk 0:00:41]}  b5 {[%clk 0:00:18]} 31. a4 {[%clk 0:00:37]}  a5 {[%clk 0:00:16]} 32. Rd4 {[%clk 0:00:36]}  c5 {[%clk 0:00:12]} 33. Rdd1 {[%clk 0:00:34]}  b4 {[%clk 0:00:10]} 34. cxb4 {[%clk 0:00:14]}  axb4 {[%clk 0:00:11]} 35. Rc1 {[%clk 0:00:11]}  c4 {[%clk 0:00:11]} 36. Red1 {[%clk 0:00:10]}  Nc5 {[%clk 0:00:10]} 37. Rd4 {[%clk 0:00:09]}  Nd3 {[%clk 0:00:07]} 38. Rxd3 {[%clk 0:00:05]}  cxd3 {[%clk 0:00:07]} 39. Rc7+ {[%clk 0:00:05]}  Ke8 {[%clk 0:00:06]} 40. Rc8+ {[%clk 0:00:05]}  Kd7 {[%clk 0:00:06]} 41. Rxh8 {[%clk 0:00:06]}  d2 {[%clk 0:00:04]} 42. Ke2 {[%clk 0:00:07]}  Rg8 {[%clk 0:00:00]} 43. Rxg8 {[%clk 0:00:06]} 1-0

[Event "December 19 Late 2023"]
[Site "https://www.chess.com"]
[Date "2023.12.19"]
[Round "4"]
[White "Kotlyar, Kirill"]
[Black "Fitol, Szymon"]
[Result "1/2-1/2"]
[Board "115"]
[TimeControl "180+1"]
[WhiteFideId "24145599"]
[BlackFideId "41857038"]
[WhiteElo "2397"]
[BlackElo "2338"]
[WhiteTeam "RUS"]
[BlackTeam "POL"]
[WhiteClock "0:00:23"]
[BlackClock "0:00:21"]

1. e4 {[%clk 0:02:59]}  e6 {[%clk 0:02:53]} 2. Nf3 {[%clk 0:02:58]}  c5 {[%clk 0:02:53]} 3. Nc3 {[%clk 0:02:59]}  Nc6 {[%clk 0:02:51]} 4. d4 {[%clk 0:02:57]}  cxd4 {[%clk 0:02:51]} 5. Nxd4 {[%clk 0:02:58]}  Bb4 {[%clk 0:02:49]} 6. Nb5 {[%clk 0:02:55]}  Nf6 {[%clk 0:02:48]} 7. a3 {[%clk 0:02:54]}  Bxc3+ {[%clk 0:02:47]} 8. Nxc3 {[%clk 0:02:55]}  d5 {[%clk 0:02:48]} 9. exd5 {[%clk 0:02:54]}  exd5 {[%clk 0:02:49]} 10. Bd3 {[%clk 0:02:54]}  d4 {[%clk 0:02:50]} 11. Ne2 {[%clk 0:02:53]}  O-O {[%clk 0:02:47]} 12. O-O {[%clk 0:02:53]}  h6 {[%clk 0:02:47]} 13. Ng3 {[%clk 0:02:53]}  Qd6 {[%clk 0:02:45]} 14. Bd2 {[%clk 0:02:38]}  Bg4 {[%clk 0:02:44]} 15. f3 {[%clk 0:02:38]}  Be6 {[%clk 0:02:43]} 16. Ne4 {[%clk 0:02:28]}  Nxe4 {[%clk 0:02:41]} 17. Bxe4 {[%clk 0:02:27]}  Bd5 {[%clk 0:02:40]} 18. Bd3 {[%clk 0:02:24]}  Rfe8 {[%clk 0:02:40]} 19. Re1 {[%clk 0:02:23]}  a5 {[%clk 0:02:35]} 20. Bb5 {[%clk 0:02:18]}  Qc5 {[%clk 0:02:33]} 21. Bxc6 {[%clk 0:02:16]}  bxc6 {[%clk 0:02:19]} 22. b4 {[%clk 0:02:08]}  axb4 {[%clk 0:02:12]} 23. Bxb4 {[%clk 0:02:06]}  Qb6 {[%clk 0:02:08]} 24. Rxe8+ {[%clk 0:01:42]}  Rxe8 {[%clk 0:02:07]} 25. Qd2 {[%clk 0:01:33]}  c5 {[%clk 0:02:04]} 26. Ba5 {[%clk 0:01:33]}  Qa7 {[%clk 0:02:03]} 27. Re1 {[%clk 0:01:32]}  Rxe1+ {[%clk 0:01:56]} 28. Qxe1 {[%clk 0:01:33]}  c4 {[%clk 0:01:57]} 29. Kh1 {[%clk 0:01:29]}  c3 {[%clk 0:01:50]} 30. Bb4 {[%clk 0:01:28]}  Be6 {[%clk 0:01:40]} 31. Qe5 {[%clk 0:01:25]}  Qa6 {[%clk 0:01:03]} 32. h3 {[%clk 0:01:14]}  Qf1+ {[%clk 0:01:02]} 33. Kh2 {[%clk 0:01:14]}  Qd1 {[%clk 0:01:03]} 34. Bc5 {[%clk 0:01:10]}  d3 {[%clk 0:00:56]} 35. Bd4 {[%clk 0:00:59]}  Kf8 {[%clk 0:00:34]} 36. Qb8+ {[%clk 0:00:51]}  Ke7 {[%clk 0:00:31]} 37. Bc5+ {[%clk 0:00:45]}  Kf6 {[%clk 0:00:28]} 38. Qd8+ {[%clk 0:00:37]}  Kg6 {[%clk 0:00:27]} 39. Qxd3+ {[%clk 0:00:36]}  Qxd3 {[%clk 0:00:26]} 40. cxd3 {[%clk 0:00:37]}  Bf5 {[%clk 0:00:24]} 41. Kg3 {[%clk 0:00:31]}  Bxd3 {[%clk 0:00:24]} 42. Kf4 {[%clk 0:00:30]}  Bf1 {[%clk 0:00:21]} 43. Kg3 {[%clk 0:00:29]}  f6 {[%clk 0:00:20]} 44. Kf2 {[%clk 0:00:28]}  Ba6 {[%clk 0:00:19]} 45. h4 {[%clk 0:00:26]}  Kf5 {[%clk 0:00:18]} 46. Bd4 {[%clk 0:00:24]}  c2 {[%clk 0:00:17]} 47. Be3 {[%clk 0:00:24]}  g5 {[%clk 0:00:17]} 48. hxg5 {[%clk 0:00:24]}  fxg5 {[%clk 0:00:18]} 49. Ke1 {[%clk 0:00:21]}  h5 {[%clk 0:00:18]} 50. Kd2 {[%clk 0:00:21]}  Bf1 {[%clk 0:00:18]} 51. g3 {[%clk 0:00:21]}  Bg2 {[%clk 0:00:18]} 52. Kxc2 {[%clk 0:00:17]}  Bxf3 {[%clk 0:00:16]} 53. Kd3 {[%clk 0:00:16]}  Kg4 {[%clk 0:00:17]} 54. Bf2 {[%clk 0:00:17]}  Bb7 {[%clk 0:00:17]} 55. Kc4 {[%clk 0:00:16]}  Kf3 {[%clk 0:00:17]} 56. Be1 {[%clk 0:00:16]}  Ke2 {[%clk 0:00:17]} 57. Bc3 {[%clk 0:00:16]}  Kf2 {[%clk 0:00:17]} 58. Be5 {[%clk 0:00:17]}  h4 {[%clk 0:00:16]} 59. gxh4 {[%clk 0:00:17]}  gxh4 {[%clk 0:00:17]} 60. Kc5 {[%clk 0:00:17]}  h3 {[%clk 0:00:18]} 61. Kb6 {[%clk 0:00:18]}  Be4 {[%clk 0:00:17]} 62. a4 {[%clk 0:00:18]}  Kg2 {[%clk 0:00:18]} 63. a5 {[%clk 0:00:18]}  h2 {[%clk 0:00:19]} 64. Bxh2 {[%clk 0:00:18]}  Kxh2 {[%clk 0:00:19]} 65. a6 {[%clk 0:00:19]}  Kg3 {[%clk 0:00:20]} 66. a7 {[%clk 0:00:20]}  Kf4 {[%clk 0:00:20]} 67. Kc7 {[%clk 0:00:21]}  Ke5 {[%clk 0:00:20]} 68. Kb8 {[%clk 0:00:22]}  Kd6 {[%clk 0:00:21]} 69. a8=Q {[%clk 0:00:23]}  Bxa8 {[%clk 0:00:21]} 1/2-1/2

[Event "December 19 Late 2023"]
[Site "https://www.chess.com"]
[Date "2023.12.19"]
[Round "4"]
[White "Yagupov, Igor"]
[Black "Prokhorov, Oleksandr"]
[Result "1-0"]
[Board "116"]
[TimeControl "180+1"]
[WhiteFideId "4113632"]
[BlackFideId "14105578"]
[WhiteElo "2179"]
[BlackElo "1955"]
[WhiteTeam "RUS"]
[BlackTeam "UKR"]
[WhiteClock "0:01:13"]
[BlackClock "0:00:13"]

1. e4 {[%clk 0:02:59]}  c5 {[%clk 0:02:56]} 2. Nf3 {[%clk 0:02:59]}  e6 {[%clk 0:02:56]} 3. d4 {[%clk 0:02:59]}  cxd4 {[%clk 0:02:56]} 4. Nxd4 {[%clk 0:03:00]}  Qb6 {[%clk 0:02:56]} 5. Nc3 {[%clk 0:02:51]}  Bc5 {[%clk 0:02:53]} 6. Na4 {[%clk 0:02:51]}  Qa5+ {[%clk 0:02:53]} 7. c3 {[%clk 0:02:51]}  Bxd4 {[%clk 0:02:53]} 8. Qxd4 {[%clk 0:02:50]}  Nf6 {[%clk 0:02:53]} 9. Nc5 {[%clk 0:02:25]}  Nc6 {[%clk 0:02:45]} 10. Qe3 {[%clk 0:02:23]}  O-O {[%clk 0:02:42]} 11. Nb3 {[%clk 0:02:20]}  Qc7 {[%clk 0:02:40]} 12. f4 {[%clk 0:02:16]}  d6 {[%clk 0:02:10]} 13. Be2 {[%clk 0:02:13]}  a6 {[%clk 0:02:00]} 14. O-O {[%clk 0:02:09]}  b5 {[%clk 0:02:00]} 15. Nd4 {[%clk 0:02:04]}  Bb7 {[%clk 0:01:57]} 16. Bf3 {[%clk 0:02:03]}  Rac8 {[%clk 0:01:55]} 17. Bd2 {[%clk 0:02:00]}  Na5 {[%clk 0:01:14]} 18. b3 {[%clk 0:01:57]}  Rfd8 {[%clk 0:01:05]} 19. Rac1 {[%clk 0:01:56]}  d5 {[%clk 0:00:51]} 20. e5 {[%clk 0:01:55]}  Ne4 {[%clk 0:00:52]} 21. Bxe4 {[%clk 0:01:42]}  dxe4 {[%clk 0:00:51]} 22. Qg3 {[%clk 0:01:42]}  Nc6 {[%clk 0:00:37]} 23. Be3 {[%clk 0:01:42]}  Ne7 {[%clk 0:00:29]} 24. f5 {[%clk 0:01:37]}  Nxf5 {[%clk 0:00:25]} 25. Nxf5 {[%clk 0:01:36]}  exf5 {[%clk 0:00:24]} 26. Rxf5 {[%clk 0:01:28]}  f6 {[%clk 0:00:20]} 27. exf6 {[%clk 0:01:21]}  Qxg3 {[%clk 0:00:19]} 28. f7+ {[%clk 0:01:21]}  Kf8 {[%clk 0:00:20]} 29. hxg3 {[%clk 0:01:21]}  g6 {[%clk 0:00:16]} 30. Bh6+ {[%clk 0:01:20]}  Ke7 {[%clk 0:00:16]} 31. f8=Q+ {[%clk 0:01:20]}  Rxf8 {[%clk 0:00:14]} 32. Rxf8 {[%clk 0:01:19]}  Rxf8 {[%clk 0:00:13]} 33. Bxf8+ {[%clk 0:01:19]}  Kxf8 {[%clk 0:00:14]} 34. c4 {[%clk 0:01:15]}  Ke7 {[%clk 0:00:12]} 35. cxb5 {[%clk 0:01:14]}  Kd6 {[%clk 0:00:12]} 36. bxa6 {[%clk 0:01:14]}  Bxa6 {[%clk 0:00:13]} 37. Kf2 {[%clk 0:01:13]}  Ke5 {[%clk 0:00:13]} 38. Ke3 {[%clk 0:01:13]} 1-0

[Event "December 19 Late 2023"]
[Site "https://www.chess.com"]
[Date "2023.12.19"]
[Round "4"]
[White "Munoz Sanchez, Miguel"]
[Black "Rangel, Daniel"]
[Result "0-1"]
[Board "117"]
[TimeControl "180+1"]
[WhiteFideId "3600734"]
[BlackFideId "2124475"]
[WhiteElo "2124"]
[BlackElo "2267"]
[WhiteTeam "ECU"]
[BlackTeam "BRA"]
[WhiteClock "0:00:01"]
[BlackClock "0:00:13"]

1. e4 {[%clk 0:03:00]}  c5 {[%clk 0:02:59]} 2. Nf3 {[%clk 0:03:00]}  g6 {[%clk 0:03:00]} 3. c3 {[%clk 0:03:00]}  Bg7 {[%clk 0:02:59]} 4. d4 {[%clk 0:03:00]}  cxd4 {[%clk 0:03:00]} 5. cxd4 {[%clk 0:03:01]}  d5 {[%clk 0:03:01]} 6. e5 {[%clk 0:03:01]}  Bg4 {[%clk 0:03:01]} 7. Bb5+ {[%clk 0:03:01]}  Nd7 {[%clk 0:02:57]} 8. Nbd2 {[%clk 0:02:55]}  e6 {[%clk 0:02:58]} 9. h3 {[%clk 0:02:52]}  Bxf3 {[%clk 0:02:57]} 10. Qxf3 {[%clk 0:02:51]}  Ne7 {[%clk 0:02:57]} 11. O-O {[%clk 0:02:49]}  O-O {[%clk 0:02:57]} 12. Bd3 {[%clk 0:02:36]}  a6 {[%clk 0:02:55]} 13. Qe2 {[%clk 0:02:32]}  b5 {[%clk 0:02:55]} 14. Nf3 {[%clk 0:02:27]}  Nb8 {[%clk 0:02:55]} 15. Bg5 {[%clk 0:02:26]}  Nbc6 {[%clk 0:02:55]} 16. Rac1 {[%clk 0:02:25]}  Qb6 {[%clk 0:02:55]} 17. Rfd1 {[%clk 0:02:19]}  Rfc8 {[%clk 0:02:51]} 18. Qe3 {[%clk 0:02:18]}  Rc7 {[%clk 0:02:48]} 19. Qf4 {[%clk 0:02:15]}  Rac8 {[%clk 0:02:46]} 20. Bf6 {[%clk 0:02:00]}  Nf5 {[%clk 0:02:07]} 21. Bxf5 {[%clk 0:01:55]}  exf5 {[%clk 0:02:08]} 22. Bxg7 {[%clk 0:01:37]}  Kxg7 {[%clk 0:02:08]} 23. Rc3 {[%clk 0:01:26]}  Nd8 {[%clk 0:02:03]} 24. Rxc7 {[%clk 0:01:04]}  Rxc7 {[%clk 0:01:54]} 25. Ng5 {[%clk 0:01:04]}  h6 {[%clk 0:01:46]} 26. Nf3 {[%clk 0:01:00]}  Ne6 {[%clk 0:01:46]} 27. Qe3 {[%clk 0:01:00]}  Rc2 {[%clk 0:01:44]} 28. Rc1 {[%clk 0:00:58]}  Qc6 {[%clk 0:01:43]} 29. Rxc2 {[%clk 0:00:57]}  Qxc2 {[%clk 0:01:44]} 30. Qc3 {[%clk 0:00:56]}  Qb1+ {[%clk 0:01:40]} 31. Kh2 {[%clk 0:00:55]}  Qxa2 {[%clk 0:01:40]} 32. Qb4 {[%clk 0:00:38]}  Qc4 {[%clk 0:01:38]} 33. Qe7 {[%clk 0:00:37]}  Qc1 {[%clk 0:01:24]} 34. Qf6+ {[%clk 0:00:37]}  Kg8 {[%clk 0:01:23]} 35. g3 {[%clk 0:00:35]}  Qxb2 {[%clk 0:01:21]} 36. Kg2 {[%clk 0:00:20]}  Qe2 {[%clk 0:00:56]} 37. Nh4 {[%clk 0:00:16]}  Qe4+ {[%clk 0:00:52]} 38. Kg1 {[%clk 0:00:16]}  f4 {[%clk 0:00:33]} 39. gxf4 {[%clk 0:00:07]}  Qxf4 {[%clk 0:00:25]} 40. Qe7 {[%clk 0:00:07]}  Nxd4 {[%clk 0:00:20]} 41. Qd8+ {[%clk 0:00:03]}  Kg7 {[%clk 0:00:17]} 42. Ng2 {[%clk 0:00:03]}  Qc1+ {[%clk 0:00:14]} 43. Kh2 {[%clk 0:00:03]}  Nf3+ {[%clk 0:00:13]} 44. Kg3 {[%clk 0:00:03]}  Nxe5 {[%clk 0:00:13]} 45. Qd6 {[%clk 0:00:02]}  Qg5+ {[%clk 0:00:13]} 46. Kh2 {[%clk 0:00:02]}  Nf3+ {[%clk 0:00:13]} 47. Kh1 {[%clk 0:00:02]}  Qc1+ {[%clk 0:00:13]} 48. Ne1 {[%clk 0:00:01]}  Qxe1+ {[%clk 0:00:13]} 49. Kg2 {[%clk 0:00:02]}  Ng5 {[%clk 0:00:12]} 50. Qxd5 {[%clk 0:00:01]}  Qe4+ {[%clk 0:00:12]} 51. Qxe4 {[%clk 0:00:01]}  Nxe4 {[%clk 0:00:13]} 52. Kf3 {[%clk 0:00:01]}  b4 {[%clk 0:00:13]} 0-1